bitfinex/quotes_BTCUSD_20250519
["timestamp","ask_amount","ask_price","bid_price","bid_amount"]
[1747628589152,1.01529186,103300.0,103290.0,0.03086998]
[1747628589761,1.01529186,103300.0,103290.0,0.02786998]
[1747628590126,1.01529186,103300.0,103290.0,0.003]
[1747628590331,1.01529186,103300.0,103290.0,0.02786998]
[1747628590796,1.01529186,103300.0,103290.0,0.02486998]
[1747628590995,1.01529186,103300.0,103290.0,0.02586998]
[1747628591473,0.98269186,103300.0,103290.0,0.02786998]
[1747628591682,0.99217411,103300.0,103290.0,0.02786998]
[1747628593039,1.02227411,103300.0,103290.0,0.02786998]
[1747628593243,1.02227411,103300.0,103290.0,0.003]
[1747628593446,1.02227411,103300.0,103290.0,0.02786998]
[1747628594979,1.02227411,103300.0,103290.0,0.003]
[1747628595626,0.99217411,103300.0,103290.0,0.02786998]
[1747628596054,0.56637411,103300.0,103290.0,0.02786998]
[1747628596288,0.99101411,103300.0,103290.0,0.02786998]
[1747628598138,1.02421411,103300.0,103290.0,0.02786998]
[1747628599937,1.02421411,103300.0,103290.0,0.003]
[1747628600160,1.02421411,103300.0,103290.0,0.02786998]
[1747628600366,1.02421411,103300.0,103290.0,0.003]
[1747628600783,1.02421411,103300.0,103290.0,0.02786998]
[1747628601218,0.79972284,103300.0,103290.0,0.02786998]
[1747628601441,1.02421411,103300.0,103290.0,0.02786998]
[1747628602579,1.02421411,103300.0,103290.0,0.003]
[1747628603005,1.36421411,103300.0,103290.0,0.003]
[1747628603787,1.35473186,103300.0,103290.0,0.003]
[1747628604421,1.36927271,103300.0,103290.0,0.003]
[1747628604630,1.67131718,103300.0,103290.0,0.003]
[1747628604841,6.89579526,103300.0,103290.0,0.003]
[1747628605052,1.05947341,103290.0,103280.0,0.0156683]
[1747628605282,6.35454081,103290.0,103280.0,0.0156683]
[1747628605473,1.35042281,103290.0,103280.0,0.0156683]
[1747628606241,1.3505666,103290.0,103280.0,0.0156683]
[1747628608123,1.3500866,103290.0,103280.0,0.0156683]
[1747628608324,1.449876,103290.0,103280.0,0.0156683]
[1747628608532,1.44955729,103290.0,103280.0,0.0156683]
[1747628609123,0.21305376,103260.0,103250.0,0.02486998]
[1747628609334,1.57105443,103260.0,103250.0,0.02486998]
[1747628609754,1.55168651,103260.0,103250.0,0.02486998]
[1747628609961,0.1937046,103250.0,103240.0,0.06692998]
[1747628610173,0.30304907,103250.0,103240.0,0.09832998]
[1747628610412,0.30069904,103250.0,103240.0,0.09832998]
[1747628610822,0.72501904,103250.0,103240.0,0.09832998]
[1747628611267,0.72501904,103250.0,103240.0,0.09881323]
[1747628611680,0.72601904,103250.0,103240.0,0.10581323]
[1747628611882,0.72701904,103250.0,103240.0,0.11181323]
[1747628612502,1.42541904,103250.0,103240.0,0.11181323]
[1747628613806,1.42541904,103250.0,103240.0,0.08041323]
[1747628614663,1.42541904,103250.0,103240.0,0.11281323]
[1747628615978,1.42541904,103250.0,103240.0,0.05554325]
[1747628616208,1.64991031,103250.0,103240.0,0.05554325]
[1747628616424,1.64991031,103250.0,103240.0,0.02354325]
[1747628616607,1.42541904,103250.0,103240.0,0.04841323]
[1747628616817,1.42441904,103250.0,103240.0,0.04141323]
[1747628616965,1.42441904,103250.0,103240.0,0.02154325]
[1747628617590,1.64791031,103250.0,103240.0,0.01554325]
[1747628618041,1.64791031,103250.0,103240.0,0.02054325]
[1747628618042,1.64891031,103250.0,103240.0,0.02054325]
[1747628618233,1.42441904,103250.0,103240.0,0.04541323]
[1747628618485,1.42441904,103250.0,103240.0,0.02054325]
[1747628618486,0.72601904,103250.0,103240.0,0.02054325]
[1747628618688,0.72601904,103250.0,103240.0,0.04541323]
[1747628620203,0.72601904,103250.0,103240.0,0.02054325]
[1747628620398,0.72601904,103250.0,103240.0,0.04541323]
[1747628622231,0.73542398,103250.0,103240.0,0.10541323]
[1747628622465,0.30169904,103250.0,103240.0,0.10541323]
[1747628622701,0.51337904,103250.0,103240.0,0.10541323]
[1747628626426,0.30169904,103250.0,103240.0,0.10541323]
[1747628632811,0.30169904,103250.0,103240.0,0.11154993]
[1747628635228,0.51305904,103250.0,103240.0,0.11154993]
[1747628637885,0.51305904,103250.0,103240.0,0.08154993]
[1747628638097,0.51305904,103250.0,103240.0,0.05154993]
[1747628638287,0.54595904,103250.0,103240.0,0.05154993]
[1747628638808,0.3425694,103250.0,103240.0,0.05154993]
[1747628639055,0.54595904,103250.0,103240.0,0.05154993]
[1747628644119,0.51305904,103250.0,103240.0,0.05154993]
[1747628646555,0.72429904,103250.0,103240.0,0.05154993]
[1747628647750,0.75659904,103250.0,103240.0,0.05154993]
[1747628651153,0.75659904,103250.0,103240.0,0.02667995]
[1747628651455,1.01359031,103250.0,103240.0,0.05154993]
[1747628652242,0.78809904,103250.0,103240.0,0.04154993]
[1747628652424,0.78809904,103250.0,103240.0,0.04554993]
[1747628652652,0.78909904,103250.0,103240.0,0.04854993]
[1747628652849,0.78909904,103250.0,103240.0,0.04241323]
[1747628657107,0.33399904,103250.0,103240.0,0.04241323]
[1747628657314,0.75555904,103250.0,103240.0,0.04241323]
[1747628659849,0.78755904,103250.0,103240.0,0.04241323]
[1747628664011,0.78755904,103250.0,103240.0,0.01754325]
[1747628664268,0.78755904,103250.0,103240.0,0.04241323]
[1747628666173,0.78731904,103250.0,103240.0,0.04241323]
[1747628668272,0.78731904,103250.0,103240.0,0.03241323]
[1747628668273,1.01181031,103250.0,103240.0,0.03241323]
[1747628668674,0.78731904,103250.0,103240.0,0.03241323]
[1747628669343,1.01181031,103250.0,103240.0,0.00754325]
[1747628669576,1.35181031,103250.0,103240.0,0.00754325]
[1747628669779,1.54545031,103250.0,103240.0,0.00754325]
[1747628670648,1.12413031,103250.0,103240.0,0.00754325]
[1747628670831,1.54537031,103250.0,103240.0,0.00354325]
[1747628670984,1.54437031,103250.0,103240.0,0.00254325]
[1747628671910,1.55991116,103250.0,103240.0,0.00454325]
[1747628672089,1.65722056,103250.0,103240.0,0.00454325]
[1747628672291,1.55991116,103250.0,103240.0,0.00454325]
[1747628672697,1.55991116,103250.0,103240.0,0.00254325]
[1747628673361,1.57452804,103250.0,103240.0,0.00254325]
[1747628673546,0.55313631,103220.0,103210.0,0.01]
[1747628673683,0.55313631,103220.0,103210.0,0.01014489]
[1747628673684,1.32679698,103220.0,103210.0,0.01014489]
[1747628673884,1.10230571,103220.0,103210.0,0.01014489]
[1747628674094,1.13420571,103220.0,103210.0,0.00014489]
[1747628674296,1.88890723,103220.0,103210.0,0.00014489]
[1747628674522,1.98523783,103220.0,103210.0,0.00014489]
[1747628674769,1.99488936,103220.0,103210.0,0.00014489]
[1747628675021,1.99588936,103220.0,103210.0,0.00814489]
[1747628675356,1.99488936,103220.0,103210.0,0.00014489]
[1747628675554,1.99588936,103220.0,103210.0,0.00314489]
[1747628675747,1.99588936,103220.0,103210.0,0.00514489]
[1747628677964,2.09319876,103220.0,103210.0,0.00514489]
[1747628678709,1.99588936,103220.0,103210.0,0.00514489]
[1747628681470,1.99588936,103220.0,103210.0,0.00501924]
[1747628684444,1.33569724,103220.0,103210.0,0.00501924]
[1747628684652,1.27309724,103220.0,103210.0,0.00501924]
[1747628684859,0.50508571,103220.0,103210.0,0.10278922]
[1747628686628,0.50508571,103220.0,103210.0,0.10078922]
[1747628687006,0.50408571,103220.0,103210.0,0.10078922]
[1747628687205,0.50508571,103220.0,103210.0,0.10278922]
[1747628688204,0.71508571,103220.0,103210.0,0.11245225]
[1747628693329,0.71508571,103220.0,103210.0,0.00501924]
[1747628693536,0.71508571,103220.0,103210.0,0.01501924]
[1747628694148,0.71508571,103220.0,103210.0,0.03988922]
[1747628694367,0.71508571,103220.0,103210.0,0.01501924]
[1747628694785,0.74758571,103220.0,103210.0,0.01501924]
[1747628695241,0.74758571,103220.0,103210.0,0.03988922]
[1747628695419,0.74758571,103220.0,103210.0,0.02988922]
[1747628695797,0.74758571,103220.0,103210.0,0.03988922]
[1747628696001,0.74758571,103220.0,103210.0,0.02988922]
[1747628696819,0.71508571,103220.0,103210.0,0.03988922]
[1747628697493,0.50508571,103220.0,103210.0,0.03988922]
[1747628697691,0.92480571,103220.0,103210.0,0.03988922]
[1747628698524,0.92480571,103220.0,103210.0,0.07118922]
[1747628698702,0.92480571,103220.0,103210.0,0.10168922]
[1747628698703,0.50508571,103220.0,103210.0,0.10168922]
[1747628698902,0.50508571,103220.0,103210.0,0.30515768]
[1747628699130,0.49539814,103220.0,103210.0,0.10168922]
[1747628699331,0.49539814,103220.0,103210.0,0.30515777]
[1747628699537,0.49539814,103220.0,103210.0,0.3112986]
[1747628699901,0.49539814,103220.0,103210.0,0.30160972]
[1747628700190,0.49539814,103220.0,103210.0,0.10783005]
[1747628702373,0.49539814,103220.0,103210.0,0.07733005]
[1747628702586,0.49539814,103220.0,103210.0,0.05246007]
[1747628702842,0.49539814,103220.0,103210.0,0.01501924]
[1747628703139,0.49539814,103220.0,103210.0,0.03988922]
[1747628703286,0.49539814,103220.0,103210.0,0.06988922]
[1747628703892,0.49539814,103220.0,103210.0,0.01501924]
[1747628704523,0.49539814,103220.0,103210.0,0.03988922]
[1747628704727,0.75198941,103220.0,103210.0,0.01501924]
[1747628704927,0.78408941,103220.0,103210.0,0.00501924]
[1747628706346,1.12408941,103220.0,103210.0,0.00501924]
[1747628706781,0.89959814,103220.0,103210.0,0.00501924]
[1747628707156,1.12408941,103220.0,103210.0,0.00501924]
[1747628707735,1.09198941,103220.0,103210.0,0.00501924]
[1747628708190,0.86749814,103220.0,103210.0,0.00501924]
[1747628709376,1.07689814,103220.0,103210.0,0.00501924]
[1747628710388,0.91475814,103220.0,103210.0,0.03988922]
[1747628711042,0.94715814,103220.0,103210.0,0.03988922]
[1747628712762,0.94715814,103220.0,103210.0,0.03740922]
[1747628713245,0.49539814,103220.0,103210.0,0.10160922]
[1747628713640,0.70467814,103220.0,103210.0,0.10160922]
[1747628714375,0.70467814,103220.0,103210.0,0.29538889]
[1747628714600,0.70467814,103220.0,103210.0,0.30507777]
[1747628714782,0.70467814,103220.0,103210.0,0.31122994]
[1747628715364,0.70467814,103220.0,103210.0,0.10776139]
[1747628715796,0.70467814,103220.0,103210.0,0.11745037]
[1747628716453,0.49539814,103220.0,103210.0,0.11745037]
[1747628716685,0.70459814,103220.0,103210.0,0.11745037]
[1747628717089,0.49539814,103220.0,103210.0,0.11745037]
[1747628717215,0.70455814,103220.0,103210.0,0.11745037]
[1747628717918,0.70455814,103220.0,103210.0,0.10776139]
[1747628718732,0.70455814,103220.0,103210.0,0.04356139]
[1747628719629,0.70455814,103220.0,103210.0,0.03740922]
[1747628721752,0.73575814,103220.0,103210.0,0.01253924]
[1747628721989,0.73575814,103220.0,103210.0,0.03740922]
[1747628722762,0.73575814,103220.0,103210.0,0.01253924]
[1747628723010,0.73575814,103220.0,103210.0,0.03740922]
[1747628725464,0.70455814,103220.0,103210.0,0.03740922]
[1747628725883,0.91339814,103220.0,103210.0,0.03740922]
[1747628726283,0.94339814,103220.0,103210.0,0.03740922]
[1747628730718,0.91327814,103220.0,103210.0,0.03740922]
[1747628731288,0.91327814,103220.0,103210.0,0.06860922]
[1747628733054,0.91327814,103220.0,103210.0,0.09900922]
[1747628733055,0.49539814,103220.0,103210.0,0.09900922]
[1747628733256,0.91323814,103220.0,103210.0,0.09900922]
[1747628733715,0.49539814,103220.0,103210.0,0.09900922]
[1747628736297,0.49539814,103220.0,103210.0,0.10869802]
[1747628738587,0.49539814,103220.0,103210.0,0.04709802]
[1747628745288,0.75178941,103220.0,103210.0,0.01253924]
[1747628745511,0.78488941,103220.0,103210.0,0.03740922]
[1747628745711,0.52729814,103220.0,103210.0,0.03740922]
[1747628746574,0.49539814,103220.0,103210.0,0.10030922]
[1747628747729,0.70371814,103220.0,103210.0,0.10030922]
[1747628748488,0.49539814,103220.0,103210.0,0.10030922]
[1747628748688,0.49539814,103220.0,103210.0,0.10647021]
[1747628762258,0.49539814,103220.0,103210.0,0.04357021]
[1747628762546,0.52759814,103220.0,103210.0,0.04357021]
[1747628763980,0.49539814,103220.0,103210.0,0.04357021]
[1747628764391,0.49539814,103220.0,103210.0,0.07497021]
[1747628764802,0.70323814,103220.0,103210.0,0.10777021]
[1747628765564,0.70323814,103220.0,103210.0,0.07497021]
[1747628769552,0.49539814,103220.0,103210.0,0.07497021]
[1747628769790,0.49539814,103220.0,103210.0,0.31043867]
[1747628769997,0.48571029,103220.0,103210.0,0.10697021]
[1747628770223,0.48571029,103220.0,103210.0,0.31043867]
[1747628771225,0.19464,103220.0,103210.0,0.33950429]
[1747628771438,0.19464,103220.0,103210.0,0.69404514]
[1747628771656,0.001,103220.0,103210.0,0.69404514]
[1747628771877,0.6984,103240.0,103230.0,0.32237228]
[1747628772089,0.72745708,103240.0,103230.0,0.32237228]
[1747628772300,1.00880443,103240.0,103230.0,0.10573097]
[1747628772507,1.00880443,103240.0,103230.0,0.07253097]
[1747628772800,1.00880443,103240.0,103230.0,0.04103097]
[1747628773033,0.81508107,103240.0,103230.0,0.30596]
[1747628773267,0.72745708,103240.0,103230.0,0.32533317]
[1747628773466,0.71777092,103240.0,103230.0,0.32533317]
[1747628773621,0.71777092,103240.0,103230.0,0.3398499]
[1747628773823,0.72745661,103240.0,103230.0,0.3398499]
[1747628774030,0.6984,103240.0,103230.0,0.34747901]
[1747628774227,0.6984,103240.0,103230.0,0.70201986]
[1747628774460,0.6994,103240.0,103230.0,0.70901986]
[1747628775102,0.001,103240.0,103230.0,0.81632926]
[1747628775832,0.0290493,103270.0,103260.0,0.32360755]
[1747628776038,0.32970913,103270.0,103260.0,0.31392411]
[1747628776238,0.11667544,103270.0,103260.0,0.34297566]
[1747628776442,0.12635879,103270.0,103260.0,0.34297566]
[1747628776729,0.12635879,103270.0,103260.0,0.33329203]
[1747628776910,0.32002587,103270.0,103260.0,0.32360812]
[1747628777119,0.33273961,103270.0,103260.0,0.03486998]
[1747628777289,0.33273961,103270.0,103260.0,0.04103097]
[1747628777490,0.30413961,103270.0,103260.0,0.04103097]
[1747628777692,0.30713961,103270.0,103260.0,0.05067736]
[1747628777893,0.30713961,103270.0,103260.0,0.29553121]
[1747628778064,0.30713961,103270.0,103260.0,0.33621503]
[1747628778271,0.13952165,103270.0,103260.0,0.34589875]
[1747628778678,0.33318873,103270.0,103260.0,0.33621503]
[1747628778898,0.12015448,103270.0,103260.0,0.34689866]
[1747628779103,0.01984508,103270.0,103260.0,0.34689866]
[1747628779377,0.01016238,103270.0,103260.0,0.68689866]
[1747628779616,0.01116238,103270.0,103260.0,0.68689866]
[1747628779955,0.01116229,103270.0,103260.0,0.68689866]
[1747628780078,0.01016229,103270.0,103260.0,0.68689866]
[1747628780279,0.01984498,103270.0,103260.0,0.68689866]
[1747628780696,0.01928489,103270.0,103260.0,0.68889866]
[1747628781099,0.01928489,103270.0,103260.0,0.80889866]
[1747628781506,0.02896768,103270.0,103260.0,0.80889866]
[1747628783257,0.01928489,103270.0,103260.0,0.80889866]
[1747628783673,0.02904667,103280.0,103270.0,0.2790031]
[1747628783872,0.02918599,103280.0,103270.0,0.2790031]
[1747628784276,0.02918599,103280.0,103270.0,0.27900319]
[1747628784481,0.02918599,103280.0,103270.0,0.28868598]
[1747628784888,0.03018599,103280.0,103270.0,0.28868598]
[1747628785130,0.31146168,103280.0,103270.0,0.02486998]
[1747628785444,0.37576168,103280.0,103270.0,0.03486998]
[1747628786366,1.07416168,103280.0,103270.0,0.03486998]
[1747628787160,1.04206168,103280.0,103270.0,0.22853706]
[1747628787376,0.91255228,103280.0,103270.0,0.25758645]
[1747628787520,0.91255228,103280.0,103270.0,0.28898645]
[1747628788119,0.71890348,103280.0,103270.0,0.29866914]
[1747628788327,0.72858514,103280.0,103270.0,0.29866914]
[1747628788540,0.73826746,103280.0,103270.0,0.32916914]
[1747628789614,0.93191654,103280.0,103270.0,0.27930348]
[1747628789832,0.93091654,103280.0,103270.0,0.03686998]
[1747628790040,1.04036178,103280.0,103270.0,0.03686998]
[1747628791076,1.04036178,103280.0,103270.0,0.03886998]
[1747628793320,1.00886178,103280.0,103270.0,0.03886998]
[1747628794096,1.03886178,103280.0,103270.0,0.03886998]
[1747628796779,1.00886178,103280.0,103270.0,0.23253706]
[1747628796996,0.99917946,103280.0,103270.0,0.03886998]
[1747628797370,1.03077946,103280.0,103270.0,0.03886998]
[1747628797908,1.03077946,103280.0,103270.0,0.04501464]
[1747628798482,1.06347946,103280.0,103270.0,0.04501464]
[1747628798868,1.06347946,103280.0,103270.0,0.04301464]
[1747628799842,1.06347946,103280.0,103270.0,0.04101464]
[1747628800243,1.06347946,103280.0,103270.0,0.04201464]
[1747628800528,0.58957073,103280.0,103270.0,0.03201464]
[1747628800723,0.58957073,103280.0,103270.0,0.04201464]
[1747628801442,0.20335024,103270.0,103260.0,0.02486998]
[1747628801649,1.00517091,103270.0,103260.0,0.03486998]
[1747628801833,0.78067964,103270.0,103260.0,0.03486998]
[1747628802431,0.26486994,103260.0,103250.0,0.03486998]
[1747628802637,0.36217934,103260.0,103250.0,0.03486998]
[1747628802810,0.36217934,103260.0,103250.0,0.04103692]
[1747628803304,0.36217934,103260.0,103250.0,0.01616694]
[1747628803533,0.58667061,103260.0,103250.0,0.04103692]
[1747628803732,0.58667061,103260.0,103250.0,0.03103692]
[1747628804346,0.74565934,103260.0,103250.0,0.04103692]
[1747628804544,0.74565934,103260.0,103250.0,0.03486998]
[1747628804959,0.74565934,103260.0,103250.0,0.03686998]
[1747628805175,0.74565934,103260.0,103250.0,0.03486998]
[1747628805340,0.74565934,103260.0,103250.0,0.03686998]
[1747628805539,0.74865934,103260.0,103250.0,0.03686998]
[1747628805767,0.74565934,103260.0,103250.0,0.03486998]
[1747628806179,0.31236335,103260.0,103250.0,0.03486998]
[1747628806384,0.51904335,103260.0,103250.0,0.03486998]
[1747628806983,0.51804335,103260.0,103250.0,0.03486998]
[1747628807190,0.31136335,103260.0,103250.0,0.06626998]
[1747628807388,0.31136335,103260.0,103250.0,0.03486998]
[1747628807592,0.31036335,103260.0,103250.0,0.03486998]
[1747628807922,0.31036335,103260.0,103250.0,0.03586998]
[1747628808334,0.31036335,103260.0,103250.0,0.04203239]
[1747628816998,0.31036335,103260.0,103250.0,0.03586998]
[1747628818699,0.31036335,103260.0,103250.0,0.06806998]
[1747628818904,0.01936811,103260.0,103250.0,0.33535128]
[1747628819111,1.13088765,103280.0,103270.0,0.04455333]
[1747628819313,0.49769705,103280.0,103270.0,0.28010367]
[1747628819520,0.49769705,103280.0,103270.0,0.32028683]
[1747628819720,0.49769705,103280.0,103270.0,0.31060367]
[1747628819922,0.49769705,103280.0,103270.0,0.11341413]
[1747628820466,0.33309484,103280.0,103270.0,0.31676428]
[1747628820667,0.52974317,103280.0,103270.0,0.31676428]
[1747628820913,0.12949474,103280.0,103270.0,0.33612985]
[1747628821162,0.13817715,103280.0,103270.0,0.32644716]
[1747628821665,0.13917715,103280.0,103270.0,0.32644716]
[1747628821968,0.30377946,103280.0,103270.0,0.08291413]
[1747628822380,0.30377946,103280.0,103270.0,0.28596797]
[1747628822757,0.30377946,103280.0,103270.0,0.29565113]
[1747628823100,0.29409705,103280.0,103270.0,0.05041754]
[1747628823239,0.32719705,103280.0,103270.0,0.05041754]
[1747628824479,0.29409705,103280.0,103270.0,0.25376797]
[1747628824684,0.29409705,103280.0,103270.0,0.26345104]
[1747628824846,0.29409705,103280.0,103270.0,0.29475104]
[1747628825076,0.29409705,103280.0,103270.0,0.28506797]
[1747628825945,0.29409705,103280.0,103270.0,0.29475113]
[1747628826513,0.29409705,103280.0,103270.0,0.28506797]
[1747628827539,0.11013038,103280.0,103270.0,0.34481679]
[1747628827833,0.00313932,103280.0,103270.0,0.68481679]
[1747628828028,0.00313932,103280.0,103270.0,0.69935764]
[1747628828946,0.00113932,103280.0,103270.0,0.69935764]
[1747628829194,0.86899188,103320.0,103300.0,0.00752]
[1747628829195,0.6984,103320.0,103300.0,0.00752]
[1747628829350,0.6984,103320.0,103310.0,0.03486998]
[1747628829351,1.04134156,103320.0,103310.0,0.03486998]
[1747628829562,1.04148186,103320.0,103310.0,0.03486998]
[1747628829739,1.07408186,103320.0,103310.0,0.03486998]
[1747628830864,1.07508186,103320.0,103310.0,0.03486998]
[1747628831458,1.07708186,103320.0,103310.0,0.03486998]
[1747628832228,1.28312186,103320.0,103310.0,0.03486998]
[1747628832637,1.07708186,103320.0,103310.0,0.03486998]
[1747628832846,1.28312186,103320.0,103310.0,0.03486998]
[1747628833259,1.28308186,103320.0,103310.0,0.03486998]
[1747628837278,1.28296186,103320.0,103310.0,0.03486998]
[1747628837681,1.28296186,103320.0,103310.0,0.04928138]
[1747628839043,1.04448186,103320.0,103310.0,0.04928138]
[1747628839252,1.25032186,103320.0,103310.0,0.04928138]
[1747628841481,1.28282186,103320.0,103310.0,0.04928138]
[1747628844942,1.28282186,103320.0,103310.0,0.0244114]
[1747628845142,1.28282186,103320.0,103310.0,0.04928138]
[1747628847569,1.50731313,103320.0,103310.0,0.03928138]
[1747628847782,1.50731313,103320.0,103310.0,0.04928138]
[1747628848214,1.28282186,103320.0,103310.0,0.04928138]
[1747628848437,1.28282186,103320.0,103310.0,0.04680138]
[1747628849284,0.58442186,103320.0,103310.0,0.04680138]
[1747628850113,0.34608186,103320.0,103310.0,0.04680138]
[1747628850315,0.55160186,103320.0,103310.0,0.04680138]
[1747628852979,0.55156186,103320.0,103310.0,0.04680138]
[1747628856469,0.55156186,103320.0,103310.0,0.05297153]
[1747628858887,0.58226186,103320.0,103310.0,0.05297153]
[1747628860463,0.58226186,103320.0,103310.0,0.03104013]
[1747628860661,1.01227313,103320.0,103310.0,0.04104013]
[1747628862556,1.01227313,103320.0,103310.0,0.03486998]
[1747628865276,1.01227313,103320.0,103310.0,0.02486998]
[1747628865628,0.26507151,103310.0,103300.0,0.01]
[1747628865827,0.36238091,103310.0,103300.0,0.01]
[1747628866706,0.36238091,103310.0,103300.0,0.03486998]
[1747628868312,0.36338091,103310.0,103300.0,0.03486998]
[1747628868534,0.34338091,103310.0,103300.0,0.03486998]
[1747628870137,0.34538091,103310.0,103300.0,0.03486998]
[1747628870969,0.51898091,103310.0,103300.0,0.03486998]
[1747628872726,0.55018091,103310.0,103300.0,0.02486998]
[1747628872927,0.55018091,103310.0,103300.0,0.03486998]
[1747628873125,0.55018091,103310.0,103300.0,0.02486998]
[1747628873311,0.55018091,103310.0,103300.0,0.03486998]
[1747628878839,0.34518091,103310.0,103300.0,0.03486998]
[1747628879050,0.51874091,103310.0,103300.0,0.03486998]
[1747628879238,0.31398091,103310.0,103300.0,0.03486998]
[1747628879447,0.72366091,103310.0,103300.0,0.03486998]
[1747628880867,0.75366091,103310.0,103300.0,0.03486998]
[1747628882547,0.97815218,103310.0,103300.0,0.03486998]
[1747628882959,0.97815218,103310.0,103300.0,0.02486998]
[1747628883169,0.23519119,103300.0,103290.0,0.01]
[1747628883372,0.36250059,103300.0,103290.0,0.03486998]
[1747628883803,0.33250059,103300.0,103290.0,0.03486998]
[1747628884004,0.50524059,103300.0,103290.0,0.04104251]
[1747628884207,0.50524059,103300.0,103290.0,0.07354251]
[1747628884409,0.71016059,103300.0,103290.0,0.07354251]
[1747628884819,0.71016059,103300.0,103290.0,0.10554251]
[1747628886860,0.71016059,103300.0,103290.0,0.07354251]
[1747628887022,0.71008059,103300.0,103290.0,0.07354251]
[1747628894441,0.70988059,103300.0,103290.0,0.07354251]
[1747628896765,0.70988059,103300.0,103290.0,0.10684251]
[1747628898482,0.70988059,103300.0,103290.0,0.07354251]
[1747628900738,0.50552059,103300.0,103290.0,0.10534251]
[1747628900913,0.70968059,103300.0,103290.0,0.10534251]
[1747628901589,0.30060059,103300.0,103290.0,0.10534251]
[1747628901852,0.50476059,103300.0,103290.0,0.10534251]
[1747628904190,0.30060059,103300.0,103290.0,0.10534251]
[1747628904416,0.50468059,103300.0,103290.0,0.09534251]
[1747628904698,0.53778059,103300.0,103290.0,0.04104251]
[1747628904917,0.793513,103300.0,103290.0,0.04104251]
[1747628905157,0.793513,103300.0,103290.0,0.00617253]
[1747628905399,0.793513,103300.0,103290.0,0.03104251]
[1747628905845,0.793513,103300.0,103290.0,0.02486998]
[1747628906741,0.56868059,103300.0,103290.0,0.02486998]
[1747628907180,0.57068059,103300.0,103290.0,0.02486998]
[1747628908534,0.57168059,103300.0,103290.0,0.02486998]
[1747628908966,0.796513,103300.0,103290.0,0.02486998]
[1747628909191,0.20331087,103290.0,103280.0,0.03486998]
[1747628909444,0.79243268,103290.0,103280.0,0.03486998]
[1747628910668,0.56760027,103290.0,103280.0,0.03486998]
[1747628912411,0.56860027,103290.0,103280.0,0.03486998]
[1747628912857,0.19364833,103280.0,103270.0,0.01]
[1747628913067,0.78568017,103280.0,103270.0,0.03486998]
[1747628913266,0.78333014,103280.0,103270.0,0.03486998]
[1747628913471,1.48173014,103280.0,103270.0,0.03486998]
[1747628913718,1.25689773,103280.0,103270.0,0.03486998]
[1747628914800,0.78333014,103280.0,103270.0,0.01]
[1747628915027,0.78333014,103280.0,103270.0,0.03486998]
[1747628915505,0.55849773,103280.0,103270.0,0.03486998]
[1747628915754,0.32355773,103280.0,103270.0,0.03486998]
[1747628915983,0.73139773,103280.0,103270.0,0.03486998]
[1747628916234,0.49503773,103280.0,103270.0,0.06536998]
[1747628916465,0.70079773,103280.0,103270.0,0.09766998]
[1747628916692,0.70079773,103280.0,103270.0,0.09526998]
[1747628917620,0.70179773,103280.0,103270.0,0.09526998]
[1747628919278,0.70171773,103280.0,103270.0,0.09526998]
[1747628920132,0.29395773,103280.0,103270.0,0.09526998]
[1747628920339,0.70167773,103280.0,103270.0,0.06296998]
[1747628922707,0.70167773,103280.0,103270.0,0.03246998]
[1747628922911,0.95661014,103280.0,103270.0,0.0076]
[1747628923113,0.98681014,103280.0,103270.0,0.03246998]
[1747628923328,0.52813773,103280.0,103270.0,0.03246998]
[1747628923554,0.70159773,103280.0,103270.0,0.06326998]
[1747628923984,0.49751773,103280.0,103270.0,0.09656998]
[1747628924713,0.49651773,103280.0,103270.0,0.09656998]
[1747628924926,0.49451773,103280.0,103270.0,0.06326998]
[1747628927044,0.29095773,103280.0,103270.0,0.09556998]
[1747628927260,0.49439773,103280.0,103270.0,0.09556998]
[1747628927471,0.29095773,103280.0,103270.0,0.09556998]
[1747628927700,0.69851773,103280.0,103270.0,0.09556998]
[1747628928159,0.69851773,103280.0,103270.0,0.06326998]
[1747628932660,0.69851773,103280.0,103270.0,0.06943765]
[1747628934302,0.69851773,103280.0,103270.0,0.03863765]
[1747628934533,0.73151773,103280.0,103270.0,0.03863765]
[1747628934730,0.76451773,103280.0,103270.0,0.03863765]
[1747628935248,0.73151773,103280.0,103270.0,0.03863765]
[1747628940535,0.98905014,103280.0,103270.0,0.03863765]
[1747628940770,0.98905014,103280.0,103270.0,0.01376767]
[1747628940978,0.98905014,103280.0,103270.0,0.03863765]
[1747628941200,0.76421773,103280.0,103270.0,0.03863765]
[1747628941656,0.73151773,103280.0,103270.0,0.03863765]
[1747628942704,0.52807773,103280.0,103270.0,0.03863765]
[1747628942971,0.69807773,103280.0,103270.0,0.06983765]
[1747628943480,0.69719773,103280.0,103270.0,0.06983765]
[1747628943692,0.29095773,103280.0,103270.0,0.09993765]
[1747628943908,0.39686958,103290.0,103280.0,0.03246998]
[1747628944115,0.49417898,103290.0,103280.0,0.09396998]
[1747628944328,0.49417898,103290.0,103280.0,0.10013765]
[1747628945131,0.49517898,103290.0,103280.0,0.10013765]
[1747628945493,0.49717898,103290.0,103280.0,0.10013765]
[1747628946078,0.29393898,103290.0,103280.0,0.10013765]
[1747628953382,0.58347139,103290.0,103280.0,0.03863765]
[1747628954156,0.35863898,103290.0,103280.0,0.03863765]
[1747628957378,0.35863898,103290.0,103280.0,0.03246998]
[1747628958879,0.58347139,103290.0,103280.0,0.03246998]
[1747628960467,0.58347139,103290.0,103280.0,0.02486998]
[1747628960677,0.58347139,103290.0,103280.0,0.03246998]
[1747628961416,0.58347139,103290.0,103280.0,0.02486998]
[1747628961835,0.58347139,103290.0,103280.0,0.03246998]
[1747628963319,0.35863898,103290.0,103280.0,0.03246998]
[1747628964464,0.32613898,103290.0,103280.0,0.03246998]
[1747628964948,0.69865898,103290.0,103280.0,0.03246998]
[1747628965146,0.29393898,103290.0,103280.0,0.03246998]
[1747628965282,0.69865898,103290.0,103280.0,0.03246998]
[1747628966059,0.72975898,103290.0,103280.0,0.03246998]
[1747628966447,0.69865898,103290.0,103280.0,0.03246998]
[1747628967842,0.73115898,103290.0,103280.0,0.03246998]
[1747628968046,0.73107898,103290.0,103280.0,0.03246998]
[1747628968610,0.76427898,103290.0,103280.0,0.03246998]
[1747628970799,0.73107898,103290.0,103280.0,0.03246998]
[1747628970997,0.49629898,103290.0,103280.0,0.06246998]
[1747628971205,0.29393898,103290.0,103280.0,0.06246998]
[1747628971412,0.69849898,103290.0,103280.0,0.06246998]
[1747628972203,0.69845898,103290.0,103280.0,0.06246998]
[1747628972469,0.69845898,103290.0,103280.0,0.06864024]
[1747628974058,0.49629898,103290.0,103280.0,0.06864024]
[1747628974354,0.69841898,103290.0,103280.0,0.10134024]
[1747628974606,0.69837898,103290.0,103280.0,0.10134024]
[1747628974808,0.29393898,103290.0,103280.0,0.10134024]
[1747628975013,0.49601898,103290.0,103280.0,0.10134024]
[1747628978918,0.75315139,103290.0,103280.0,0.03864024]
[1747628979122,0.78615139,103290.0,103280.0,0.03864024]
[1747628979325,0.56131898,103290.0,103280.0,0.03864024]
[1747628980324,0.78615139,103290.0,103280.0,0.03864024]
[1747628980908,0.56131898,103290.0,103280.0,0.03864024]